[Event "Titled Tuesday Blitz May 24 Early 2022"]
[White "Samunenkov, Ihor"]
[Black "Andreikin, Dmitry"]
[WhiteFideId "14187086"]
[BlackFideId "4158814"]
[WhiteElo "2409"]
[BlackElo "2736"]
[Result "0-1"]
[Round "10"]
[TimeControl "180+1"]
[Date "2022.05.24"]
[WhiteClock "0:00:19"]
[BlackClock "0:01:47"]

1. d4 {[%clk 0:03:00]}  Nf6 {[%clk 0:02:59]} 2. c4 {[%clk 0:03:01]}  e6 {[%clk 0:02:59]} 3. Nc3 {[%clk 0:03:01]}  Bb4 {[%clk 0:02:59]} 4. e3 {[%clk 0:03:01]}  O-O {[%clk 0:02:58]} 5. Bd2 {[%clk 0:03:02]}  c6 {[%clk 0:02:58]} 6. Nf3 {[%clk 0:02:59]}  d5 {[%clk 0:02:58]} 7. a3 {[%clk 0:02:55]}  Bd6 {[%clk 0:02:58]} 8. Qc2 {[%clk 0:02:54]}  Nbd7 {[%clk 0:02:58]} 9. Bd3 {[%clk 0:02:34]}  dxc4 {[%clk 0:02:58]} 10. Bxc4 {[%clk 0:02:33]}  e5 {[%clk 0:02:58]} 11. dxe5 {[%clk 0:02:27]}  Nxe5 {[%clk 0:02:58]} 12. Nxe5 {[%clk 0:02:27]}  Bxe5 {[%clk 0:02:59]} 13. f4 {[%clk 0:02:18]}  Bxf4 {[%clk 0:02:44]} 14. exf4 {[%clk 0:02:09]}  Re8+ {[%clk 0:02:45]} 15. Kf1 {[%clk 0:01:52]}  Bf5 {[%clk 0:02:23]} 16. Qxf5 {[%clk 0:01:05]}  Qxd2 {[%clk 0:02:22]} 17. Rd1 {[%clk 0:00:48]}  Qxb2 {[%clk 0:02:21]} 18. Ne2 {[%clk 0:00:48]}  g6 {[%clk 0:02:09]} 19. Qb1 {[%clk 0:00:45]}  Qxb1 {[%clk 0:01:53]} 20. Rxb1 {[%clk 0:00:46]}  b5 {[%clk 0:01:54]} 21. Ba2 {[%clk 0:00:45]}  Rad8 {[%clk 0:01:52]} 22. Re1 {[%clk 0:00:29]}  Rd2 {[%clk 0:01:49]} 23. Nc3 {[%clk 0:00:18]}  Rxe1+ {[%clk 0:01:47]} 24. Kxe1 {[%clk 0:00:19]}  Rc2 {[%clk 0:01:47]} 0-1


[Site "https://www.chess.com"]

[Event "Titled Tuesday Blitz May 24 Early 2022"]
[White "Sankalan Shah"]
[Black "Provaznik, Michal"]
[WhiteFideId "25600362"]
[BlackFideId "315273"]
[WhiteElo "1648"]
[BlackElo "2176"]
[Result "1-0"]
[Round "10"]
[TimeControl "180+1"]
[Date "2022.05.25"]
[WhiteClock "0:02:00"]
[BlackClock "0:01:56"]

1. d4 {[%clk 0:03:00]}  f5 {[%clk 0:02:49]} 2. c4 {[%clk 0:03:00]}  Nf6 {[%clk 0:02:49]} 3. g3 {[%clk 0:03:00]}  e6 {[%clk 0:02:49]} 4. Bg2 {[%clk 0:03:01]}  Be7 {[%clk 0:02:49]} 5. Nf3 {[%clk 0:03:01]}  O-O {[%clk 0:02:50]} 6. O-O {[%clk 0:03:01]}  Qe8 {[%clk 0:02:51]} 7. Nc3 {[%clk 0:03:00]}  Qh5 {[%clk 0:02:50]} 8. Re1 {[%clk 0:02:58]}  Nc6 {[%clk 0:02:49]} 9. e4 {[%clk 0:02:46]}  fxe4 {[%clk 0:02:48]} 10. Nxe4 {[%clk 0:02:47]}  Nxe4 {[%clk 0:02:48]} 11. Rxe4 {[%clk 0:02:48]}  d6 {[%clk 0:02:45]} 12. Bf4 {[%clk 0:02:35]}  e5 {[%clk 0:02:37]} 13. dxe5 {[%clk 0:02:29]}  Bg4 {[%clk 0:02:21]} 14. h3 {[%clk 0:02:10]}  Be6 {[%clk 0:02:09]} 15. exd6 {[%clk 0:02:06]}  Bxd6 {[%clk 0:02:01]} 16. Bxd6 {[%clk 0:02:00]}  cxd6 {[%clk 0:01:56]} 17. Rxe6 {[%clk 0:02:00]} 1-0


[Site "https://www.chess.com"]

[Event "Titled Tuesday Blitz May 24 Early 2022"]
[White "Schekachikhin, Maksim"]
[Black "Bryakin, Mikhail"]
[WhiteFideId "24177830"]
[BlackFideId "4165314"]
[WhiteElo "2239"]
[BlackElo "2417"]
[Result "1-0"]
[Round "10"]
[TimeControl "180+1"]
[Date "2022.05.25"]
[WhiteClock "0:01:14"]
[BlackClock "0:00:09"]

1. b3 {[%clk 0:02:59]}  g6 {[%clk 0:02:58]} 2. Bb2 {[%clk 0:02:59]}  Nf6 {[%clk 0:02:58]} 3. g3 {[%clk 0:03:00]}  Bg7 {[%clk 0:02:59]} 4. Bg2 {[%clk 0:03:00]}  O-O {[%clk 0:02:59]} 5. Nf3 {[%clk 0:03:01]}  b6 {[%clk 0:02:59]} 6. c4 {[%clk 0:03:01]}  Bb7 {[%clk 0:03:00]} 7. O-O {[%clk 0:03:01]}  a5 {[%clk 0:02:59]} 8. Nc3 {[%clk 0:02:59]}  e6 {[%clk 0:02:58]} 9. d4 {[%clk 0:02:59]}  d6 {[%clk 0:02:59]} 10. Qc2 {[%clk 0:02:59]}  Nbd7 {[%clk 0:02:58]} 11. e4 {[%clk 0:02:59]}  e5 {[%clk 0:02:59]} 12. d5 {[%clk 0:02:59]}  h6 {[%clk 0:02:52]} 13. a3 {[%clk 0:02:58]}  Nh7 {[%clk 0:02:53]} 14. b4 {[%clk 0:02:58]}  Ng5 {[%clk 0:02:53]} 15. Ne1 {[%clk 0:02:34]}  f5 {[%clk 0:02:53]} 16. exf5 {[%clk 0:02:31]}  gxf5 {[%clk 0:02:53]} 17. f4 {[%clk 0:02:31]}  exf4 {[%clk 0:02:50]} 18. gxf4 {[%clk 0:02:32]}  Nh7 {[%clk 0:02:50]} 19. Nd3 {[%clk 0:02:27]}  Nhf6 {[%clk 0:02:39]} 20. Nb5 {[%clk 0:02:26]}  Ng4 {[%clk 0:02:32]} 21. Rae1 {[%clk 0:02:21]}  axb4 {[%clk 0:02:25]} 22. Bxg7 {[%clk 0:02:20]}  Kxg7 {[%clk 0:02:25]} 23. axb4 {[%clk 0:02:20]}  Rf7 {[%clk 0:02:17]} 24. Nd4 {[%clk 0:02:18]}  Kh7 {[%clk 0:02:03]} 25. h3 {[%clk 0:02:15]}  Qf6 {[%clk 0:01:20]} 26. Nxf5 {[%clk 0:02:14]}  Rg8 {[%clk 0:01:05]} 27. hxg4 {[%clk 0:02:02]}  Rxg4 {[%clk 0:01:05]} 28. Nf2 {[%clk 0:02:03]}  Rg6 {[%clk 0:00:55]} 29. Re6 {[%clk 0:01:52]}  Qxf5 {[%clk 0:00:48]} 30. Qxf5 {[%clk 0:01:52]}  Rxf5 {[%clk 0:00:48]} 31. Rxg6 {[%clk 0:01:51]}  Kxg6 {[%clk 0:00:48]} 32. Be4 {[%clk 0:01:51]}  Nf6 {[%clk 0:00:49]} 33. Bd3 {[%clk 0:01:45]}  b5 {[%clk 0:00:47]} 34. cxb5 {[%clk 0:01:42]}  Bxd5 {[%clk 0:00:33]} 35. Rc1 {[%clk 0:01:39]}  Ne8 {[%clk 0:00:33]} 36. Ng4 {[%clk 0:01:36]}  Be6 {[%clk 0:00:14]} 37. Ne3 {[%clk 0:01:35]}  Kf6 {[%clk 0:00:15]} 38. Bxf5 {[%clk 0:01:31]}  Bxf5 {[%clk 0:00:15]} 39. Nd5+ {[%clk 0:01:30]}  Kf7 {[%clk 0:00:16]} 40. Nxc7 {[%clk 0:01:31]}  Nf6 {[%clk 0:00:16]} 41. b6 {[%clk 0:01:31]}  Be4 {[%clk 0:00:17]} 42. Kf2 {[%clk 0:01:23]}  Ke7 {[%clk 0:00:13]} 43. Na6 {[%clk 0:01:17]}  Nd7 {[%clk 0:00:13]} 44. Re1 {[%clk 0:01:16]}  d5 {[%clk 0:00:09]} 45. b7 {[%clk 0:01:14]} 1-0


[Site "https://www.chess.com"]

[Event "Titled Tuesday Blitz May 24 Early 2022"]
[White "Shipov, Sergei"]
[Black "Hua, Lefong"]
[WhiteFideId "4113624"]
[BlackFideId "2602253"]
[WhiteElo "2794"]
[BlackElo "2633"]
[Result "1-0"]
[Round "10"]
[TimeControl "180+1"]
[Date "2022.05.24"]
[WhiteClock "0:01:15"]
[BlackClock "0:00:10"]

1. d4 {[%clk 0:03:00]}  Nf6 {[%clk 0:02:59]} 2. c4 {[%clk 0:03:01]}  g6 {[%clk 0:02:58]} 3. Nc3 {[%clk 0:03:01]}  Bg7 {[%clk 0:02:59]} 4. e4 {[%clk 0:03:01]}  d6 {[%clk 0:02:59]} 5. Be2 {[%clk 0:03:02]}  O-O {[%clk 0:03:00]} 6. g4 {[%clk 0:03:03]}  c5 {[%clk 0:02:59]} 7. g5 {[%clk 0:03:03]}  Nfd7 {[%clk 0:02:56]} 8. d5 {[%clk 0:03:03]}  a6 {[%clk 0:02:49]} 9. a4 {[%clk 0:03:03]}  Qc7 {[%clk 0:02:39]} 10. h4 {[%clk 0:03:01]}  e6 {[%clk 0:02:37]} 11. h5 {[%clk 0:03:02]}  Re8 {[%clk 0:02:36]} 12. Kf1 {[%clk 0:03:01]}  exd5 {[%clk 0:02:27]} 13. exd5 {[%clk 0:03:01]}  Nf8 {[%clk 0:02:17]} 14. Bd3 {[%clk 0:02:58]}  Nbd7 {[%clk 0:02:09]} 15. f4 {[%clk 0:02:58]}  f5 {[%clk 0:02:01]} 16. Qd2 {[%clk 0:02:53]}  Rb8 {[%clk 0:01:57]} 17. h6 {[%clk 0:02:53]}  Bh8 {[%clk 0:01:57]} 18. Nf3 {[%clk 0:02:52]}  b6 {[%clk 0:01:51]} 19. b3 {[%clk 0:02:46]}  Bb7 {[%clk 0:01:48]} 20. Bb2 {[%clk 0:02:46]}  Re7 {[%clk 0:01:48]} 21. Kf2 {[%clk 0:02:40]}  Rbe8 {[%clk 0:01:41]} 22. Rhe1 {[%clk 0:02:40]}  Qd8 {[%clk 0:01:35]} 23. Rxe7 {[%clk 0:02:39]}  Rxe7 {[%clk 0:01:35]} 24. Re1 {[%clk 0:02:38]}  Kf7 {[%clk 0:01:31]} 25. Nb5 {[%clk 0:02:09]}  axb5 {[%clk 0:01:30]} 26. Bxh8 {[%clk 0:02:08]}  Rxe1 {[%clk 0:01:15]} 27. Qxe1 {[%clk 0:02:05]}  b4 {[%clk 0:01:14]} 28. Qa1 {[%clk 0:02:01]}  Qe7 {[%clk 0:01:11]} 29. a5 {[%clk 0:01:59]}  bxa5 {[%clk 0:01:09]} 30. Qxa5 {[%clk 0:01:58]}  Ke8 {[%clk 0:01:04]} 31. Qc7 {[%clk 0:01:55]}  Ba6 {[%clk 0:00:53]} 32. Bg7 {[%clk 0:01:50]}  Kf7 {[%clk 0:00:49]} 33. Nh4 {[%clk 0:01:45]}  Ke8 {[%clk 0:00:39]} 34. Bxf5 {[%clk 0:01:40]}  Bxc4 {[%clk 0:00:31]} 35. bxc4 {[%clk 0:01:34]}  b3 {[%clk 0:00:32]} 36. Bd3 {[%clk 0:01:29]}  Kf7 {[%clk 0:00:29]} 37. Qb7 {[%clk 0:01:25]}  Kg8 {[%clk 0:00:24]} 38. Qxb3 {[%clk 0:01:24]}  Nb6 {[%clk 0:00:18]} 39. Qxb6 {[%clk 0:01:23]}  Nd7 {[%clk 0:00:18]} 40. Qc7 {[%clk 0:01:20]}  Qe8 {[%clk 0:00:12]} 41. Qxd6 {[%clk 0:01:19]}  Ne5 {[%clk 0:00:12]} 42. Qxe5 {[%clk 0:01:18]}  Qe7 {[%clk 0:00:10]} 43. Bf6 {[%clk 0:01:15]} 1-0


[Site "https://www.chess.com"]

[Event "Titled Tuesday Blitz May 24 Early 2022"]
[White "Skuhala, Barbara"]
[Black "Melikhov, Evgeny V."]
[WhiteFideId "14605465"]
[BlackFideId "4122046"]
[WhiteElo "2155"]
[BlackElo "1931"]
[Result "1/2-1/2"]
[Round "10"]
[TimeControl "180+1"]
[Date "2022.05.25"]
[WhiteClock "0:01:10"]
[BlackClock "0:00:18"]

1. e4 {[%clk 0:02:58]}  c5 {[%clk 0:02:56]} 2. Nf3 {[%clk 0:02:58]}  d6 {[%clk 0:02:56]} 3. d4 {[%clk 0:02:56]}  cxd4 {[%clk 0:02:56]} 4. Nxd4 {[%clk 0:02:55]}  Nf6 {[%clk 0:02:56]} 5. Nc3 {[%clk 0:02:54]}  a6 {[%clk 0:02:57]} 6. f3 {[%clk 0:02:53]}  e5 {[%clk 0:02:56]} 7. Nb3 {[%clk 0:02:52]}  Be6 {[%clk 0:02:56]} 8. Be3 {[%clk 0:02:50]}  Be7 {[%clk 0:02:56]} 9. Qd2 {[%clk 0:02:50]}  O-O {[%clk 0:02:56]} 10. O-O-O {[%clk 0:02:50]}  b5 {[%clk 0:02:56]} 11. Kb1 {[%clk 0:02:48]}  Nbd7 {[%clk 0:02:56]} 12. g4 {[%clk 0:02:48]}  Nb6 {[%clk 0:02:55]} 13. h4 {[%clk 0:02:48]}  Nc4 {[%clk 0:02:51]} 14. Bxc4 {[%clk 0:02:47]}  bxc4 {[%clk 0:02:51]} 15. Nc1 {[%clk 0:02:47]}  Rb8 {[%clk 0:02:51]} 16. h5 {[%clk 0:02:45]}  Nd7 {[%clk 0:02:44]} 17. g5 {[%clk 0:02:44]}  Nc5 {[%clk 0:02:43]} 18. g6 {[%clk 0:02:43]}  Qa5 {[%clk 0:02:40]} 19. h6 {[%clk 0:02:42]}  fxg6 {[%clk 0:02:33]} 20. hxg7 {[%clk 0:02:42]}  Rxf3 {[%clk 0:02:32]} 21. Bxc5 {[%clk 0:02:38]}  Qxc3 {[%clk 0:02:09]} 22. Qxc3 {[%clk 0:02:37]}  Rxc3 {[%clk 0:02:09]} 23. Bxd6 {[%clk 0:02:36]}  Bxd6 {[%clk 0:02:06]} 24. Rxd6 {[%clk 0:02:36]}  Bh3 {[%clk 0:01:56]} 25. Rxa6 {[%clk 0:02:28]}  Bg2 {[%clk 0:01:50]} 26. Re1 {[%clk 0:02:28]}  Kxg7 {[%clk 0:01:30]} 27. Re6 {[%clk 0:02:25]}  h5 {[%clk 0:01:24]} 28. Rxe5 {[%clk 0:02:24]}  h4 {[%clk 0:01:24]} 29. Rg5 {[%clk 0:02:24]}  h3 {[%clk 0:01:24]} 30. e5 {[%clk 0:02:19]}  Rf3 {[%clk 0:01:19]} 31. e6 {[%clk 0:02:13]}  Rf1 {[%clk 0:01:18]} 32. Rxf1 {[%clk 0:02:11]}  Bxf1 {[%clk 0:01:18]} 33. Rg1 {[%clk 0:02:11]}  Bg2 {[%clk 0:01:14]} 34. Ne2 {[%clk 0:02:05]}  Re8 {[%clk 0:01:13]} 35. Ng3 {[%clk 0:01:53]}  Rxe6 {[%clk 0:01:09]} 36. a4 {[%clk 0:01:54]}  Re3 {[%clk 0:01:07]} 37. Nh1 {[%clk 0:01:53]}  Bxh1 {[%clk 0:01:02]} 38. Rxh1 {[%clk 0:01:52]}  g5 {[%clk 0:01:02]} 39. a5 {[%clk 0:01:52]}  g4 {[%clk 0:01:02]} 40. a6 {[%clk 0:01:52]}  Re6 {[%clk 0:01:01]} 41. Rg1 {[%clk 0:01:49]}  Rxa6 {[%clk 0:00:57]} 42. Rxg4+ {[%clk 0:01:47]}  Rg6 {[%clk 0:00:57]} 43. Rh4 {[%clk 0:01:47]}  Rh6 {[%clk 0:00:57]} 44. Rg4+ {[%clk 0:01:47]}  Kf6 {[%clk 0:00:57]} 45. Rg1 {[%clk 0:01:45]}  h2 {[%clk 0:00:57]} 46. Rh1 {[%clk 0:01:45]}  Ke5 {[%clk 0:00:56]} 47. Ka2 {[%clk 0:01:45]}  Rh3 {[%clk 0:00:52]} 48. b4 {[%clk 0:01:45]}  Kd4 {[%clk 0:00:50]} 49. Kb2 {[%clk 0:01:41]}  Kd5 {[%clk 0:00:49]} 50. c3 {[%clk 0:01:41]}  Kc6 {[%clk 0:00:49]} 51. Kc2 {[%clk 0:01:39]}  Kb5 {[%clk 0:00:49]} 52. Kb2 {[%clk 0:01:40]}  Rh4 {[%clk 0:00:47]} 53. Ka2 {[%clk 0:01:37]}  Rh3 {[%clk 0:00:41]} 54. Kb2 {[%clk 0:01:35]}  Kc6 {[%clk 0:00:41]} 55. Kc2 {[%clk 0:01:34]}  Kd5 {[%clk 0:00:38]} 56. Kb2 {[%clk 0:01:32]}  Rh5 {[%clk 0:00:37]} 57. Ka3 {[%clk 0:01:30]}  Ke4 {[%clk 0:00:26]} 58. b5 {[%clk 0:01:29]}  Kd3 {[%clk 0:00:26]} 59. Kb4 {[%clk 0:01:29]}  Rh6 {[%clk 0:00:24]} 60. Kc5 {[%clk 0:01:25]}  Kxc3 {[%clk 0:00:23]} 61. b6 {[%clk 0:01:26]}  Rh8 {[%clk 0:00:23]} 62. b7 {[%clk 0:01:24]}  Kd3 {[%clk 0:00:22]} 63. Rxh2 {[%clk 0:01:23]}  Rb8 {[%clk 0:00:20]} 64. Rh3+ {[%clk 0:01:22]}  Kd2 {[%clk 0:00:19]} 65. Rh2+ {[%clk 0:01:16]}  Kd3 {[%clk 0:00:19]} 66. Rh3+ {[%clk 0:01:15]}  Kd2 {[%clk 0:00:19]} 67. Kc6 {[%clk 0:01:12]}  c3 {[%clk 0:00:18]} 68. Rh2+ {[%clk 0:01:11]}  Kd3 {[%clk 0:00:18]} 69. Rh3+ {[%clk 0:01:09]}  Kd2 {[%clk 0:00:18]} 70. Rxc3 {[%clk 0:01:09]}  Kxc3 {[%clk 0:00:18]} 71. Kc7 {[%clk 0:01:09]}  Rxb7+ {[%clk 0:00:18]} 72. Kxb7 {[%clk 0:01:10]} 1/2-1/2


[Site "https://www.chess.com"]

[Event "Titled Tuesday Blitz May 24 Early 2022"]
[White "Soumya, Swaminathan"]
[Black "Hartikainen, Jarmo"]
[WhiteFideId "5016193"]
[BlackFideId "503134"]
[WhiteElo "2115"]
[BlackElo "2123"]
[Result "0-1"]
[Round "10"]
[TimeControl "180+1"]
[Date "2022.05.25"]
[WhiteClock "0:00:04"]
[BlackClock "0:00:08"]

1. d4 {[%clk 0:03:00]}  Nf6 {[%clk 0:01:00]} 2. c4 {[%clk 0:02:59]}  g6 {[%clk 0:01:00]} 3. Nc3 {[%clk 0:02:56]}  d5 {[%clk 0:01:00]} 4. cxd5 {[%clk 0:02:46]}  Nxd5 {[%clk 0:01:01]} 5. e4 {[%clk 0:02:46]}  Nxc3 {[%clk 0:01:01]} 6. bxc3 {[%clk 0:02:46]}  Bg7 {[%clk 0:01:02]} 7. Nf3 {[%clk 0:02:45]}  O-O {[%clk 0:01:03]} 8. Be3 {[%clk 0:02:41]}  c5 {[%clk 0:01:03]} 9. Be2 {[%clk 0:02:29]}  cxd4 {[%clk 0:01:04]} 10. cxd4 {[%clk 0:02:29]}  Nc6 {[%clk 0:01:04]} 11. h3 {[%clk 0:02:25]}  Qa5+ {[%clk 0:01:02]} 12. Bd2 {[%clk 0:02:25]}  Qb6 {[%clk 0:01:01]} 13. Rb1 {[%clk 0:02:19]}  Qc7 {[%clk 0:01:00]} 14. Qc1 {[%clk 0:01:57]}  Qd8 {[%clk 0:00:52]} 15. d5 {[%clk 0:01:51]}  Nd4 {[%clk 0:00:49]} 16. Nxd4 {[%clk 0:01:49]}  Bxd4 {[%clk 0:00:49]} 17. O-O {[%clk 0:01:46]}  e6 {[%clk 0:00:48]} 18. Bb4 {[%clk 0:01:27]}  Re8 {[%clk 0:00:46]} 19. Bb5 {[%clk 0:00:25]}  Bd7 {[%clk 0:00:41]} 20. Qc4 {[%clk 0:00:20]}  e5 {[%clk 0:00:39]} 21. d6 {[%clk 0:00:17]}  Rc8 {[%clk 0:00:37]} 22. Qd3 {[%clk 0:00:16]}  Bxb5 {[%clk 0:00:36]} 23. Qxb5 {[%clk 0:00:17]}  Qb6 {[%clk 0:00:34]} 24. Qd3 {[%clk 0:00:14]}  Red8 {[%clk 0:00:33]} 25. Rb3 {[%clk 0:00:10]}  Qc6 {[%clk 0:00:30]} 26. Kh1 {[%clk 0:00:08]}  b6 {[%clk 0:00:30]} 27. f3 {[%clk 0:00:08]}  a5 {[%clk 0:00:31]} 28. Ba3 {[%clk 0:00:07]}  Qc2 {[%clk 0:00:30]} 29. Qxc2 {[%clk 0:00:07]}  Rxc2 {[%clk 0:00:30]} 30. f4 {[%clk 0:00:06]}  Rxa2 {[%clk 0:00:29]} 31. fxe5 {[%clk 0:00:06]}  Bxe5 {[%clk 0:00:29]} 32. Bc1 {[%clk 0:00:05]}  Bxd6 {[%clk 0:00:28]} 33. Rxb6 {[%clk 0:00:05]}  Ra1 {[%clk 0:00:23]} 34. Rc6 {[%clk 0:00:05]}  Ba3 {[%clk 0:00:19]} 35. Re1 {[%clk 0:00:05]}  Bxc1 {[%clk 0:00:19]} 36. Rexc1 {[%clk 0:00:05]}  Rxc1+ {[%clk 0:00:18]} 37. Rxc1 {[%clk 0:00:06]}  Rd4 {[%clk 0:00:18]} 38. Rc8+ {[%clk 0:00:05]}  Kg7 {[%clk 0:00:17]} 39. Ra8 {[%clk 0:00:06]}  a4 {[%clk 0:00:16]} 40. e5 {[%clk 0:00:06]}  Re4 {[%clk 0:00:15]} 41. Ra7 {[%clk 0:00:05]}  Rxe5 {[%clk 0:00:14]} 42. Rxa4 {[%clk 0:00:05]}  Re2 {[%clk 0:00:14]} 43. h4 {[%clk 0:00:05]}  h6 {[%clk 0:00:12]} 44. Kh2 {[%clk 0:00:05]}  g5 {[%clk 0:00:11]} 45. hxg5 {[%clk 0:00:06]}  hxg5 {[%clk 0:00:11]} 46. Ra5 {[%clk 0:00:05]}  f6 {[%clk 0:00:11]} 47. Kh3 {[%clk 0:00:05]}  Kg6 {[%clk 0:00:11]} 48. g4 {[%clk 0:00:05]}  Re3+ {[%clk 0:00:11]} 49. Kg2 {[%clk 0:00:05]}  Rb3 {[%clk 0:00:11]} 50. Kf2 {[%clk 0:00:04]}  Kf7 {[%clk 0:00:12]} 51. Kg2 {[%clk 0:00:04]}  Ke6 {[%clk 0:00:12]} 52. Kf2 {[%clk 0:00:04]}  Rd3 {[%clk 0:00:12]} 53. Kg2 {[%clk 0:00:04]}  Rd5 {[%clk 0:00:12]} 54. Ra6+ {[%clk 0:00:04]}  Ke5 {[%clk 0:00:12]} 55. Rb6 {[%clk 0:00:05]}  Rd4 {[%clk 0:00:10]} 56. Ra6 {[%clk 0:00:04]}  Rxg4+ {[%clk 0:00:09]} 57. Kf3 {[%clk 0:00:05]}  Rf4+ {[%clk 0:00:09]} 58. Kg3 {[%clk 0:00:05]}  Kf5 {[%clk 0:00:10]} 59. Rb6 {[%clk 0:00:05]}  Ra4 {[%clk 0:00:08]} 60. Kf3 {[%clk 0:00:05]}  Ra3+ {[%clk 0:00:08]} 61. Kg2 {[%clk 0:00:05]}  g4 {[%clk 0:00:08]} 62. Rc6 {[%clk 0:00:04]}  Kg5 {[%clk 0:00:08]} 63. Rc8 {[%clk 0:00:05]}  f5 {[%clk 0:00:08]} 64. Rc4 {[%clk 0:00:04]}  f4 {[%clk 0:00:08]} 65. Rc5+ {[%clk 0:00:05]}  Kh4 {[%clk 0:00:09]} 66. Rc8 {[%clk 0:00:04]}  Ra2+ {[%clk 0:00:09]} 67. Kg1 {[%clk 0:00:04]}  Kg3 {[%clk 0:00:09]} 68. Kf1 {[%clk 0:00:04]}  Ra1+ {[%clk 0:00:08]} 69. Ke2 {[%clk 0:00:04]}  f3+ {[%clk 0:00:08]} 70. Ke3 {[%clk 0:00:04]}  f2 {[%clk 0:00:09]} 71. Rc3 {[%clk 0:00:04]}  f1=Q {[%clk 0:00:08]} 0-1


[Site "https://www.chess.com"]

[Event "Titled Tuesday Blitz May 24 Early 2022"]
[White "Sovetbekova, Nurai"]
[Black "Chernomordik, Pavel"]
[WhiteFideId "13801910"]
[BlackFideId "2804530"]
[WhiteElo "1660"]
[BlackElo "2220"]
[Result "1-0"]
[Round "10"]
[TimeControl "180+1"]
[Date "2022.05.25"]
[WhiteClock "0:00:05"]
[BlackClock "0:00:01"]

1. d4 {[%clk 0:03:00]}  g6 {[%clk 0:02:59]} 2. c4 {[%clk 0:03:00]}  Bg7 {[%clk 0:02:58]} 3. g3 {[%clk 0:03:00]}  d6 {[%clk 0:02:57]} 4. Bg2 {[%clk 0:03:00]}  Nf6 {[%clk 0:02:57]} 5. Nc3 {[%clk 0:02:59]}  O-O {[%clk 0:02:56]} 6. Nf3 {[%clk 0:02:59]}  c6 {[%clk 0:02:56]} 7. O-O {[%clk 0:02:59]}  a6 {[%clk 0:02:55]} 8. e4 {[%clk 0:02:58]}  Nfd7 {[%clk 0:02:54]} 9. Be3 {[%clk 0:02:55]}  b5 {[%clk 0:02:54]} 10. d5 {[%clk 0:02:48]}  bxc4 {[%clk 0:02:46]} 11. dxc6 {[%clk 0:02:43]}  Nxc6 {[%clk 0:02:46]} 12. Qa4 {[%clk 0:02:06]}  Nce5 {[%clk 0:02:37]} 13. Nxe5 {[%clk 0:01:59]}  Nxe5 {[%clk 0:02:36]} 14. Nd5 {[%clk 0:01:58]}  Rb8 {[%clk 0:02:30]} 15. Bd4 {[%clk 0:01:46]}  Nf3+ {[%clk 0:02:26]} 16. Bxf3 {[%clk 0:01:41]}  Bxd4 {[%clk 0:02:27]} 17. Qxc4 {[%clk 0:01:40]}  Bxb2 {[%clk 0:02:26]} 18. Rab1 {[%clk 0:01:39]}  Bh3 {[%clk 0:02:24]} 19. Rfd1 {[%clk 0:01:35]}  e6 {[%clk 0:02:11]} 20. Nf4 {[%clk 0:01:30]}  Qf6 {[%clk 0:02:10]} 21. Qd3 {[%clk 0:01:21]}  Bf5 {[%clk 0:01:45]} 22. exf5 {[%clk 0:01:19]}  gxf5 {[%clk 0:01:45]} 23. Nh5 {[%clk 0:01:11]}  Qc3 {[%clk 0:01:35]} 24. Qxc3 {[%clk 0:00:55]}  Bxc3 {[%clk 0:01:34]} 25. Rxb8 {[%clk 0:00:56]}  Rxb8 {[%clk 0:01:33]} 26. Rxd6 {[%clk 0:00:55]}  a5 {[%clk 0:01:33]} 27. Ra6 {[%clk 0:00:51]}  Kf8 {[%clk 0:01:27]} 28. Ra8 {[%clk 0:00:50]}  Rxa8 {[%clk 0:01:26]} 29. Bxa8 {[%clk 0:00:51]}  Ke7 {[%clk 0:01:25]} 30. Nf4 {[%clk 0:00:51]}  Kd6 {[%clk 0:01:22]} 31. Kf1 {[%clk 0:00:49]}  Kc5 {[%clk 0:01:20]} 32. Nd3+ {[%clk 0:00:47]}  Kc4 {[%clk 0:01:16]} 33. Ke2 {[%clk 0:00:46]}  Bd4 {[%clk 0:01:12]} 34. f4 {[%clk 0:00:37]}  f6 {[%clk 0:01:11]} 35. Bc6 {[%clk 0:00:31]}  e5 {[%clk 0:01:08]} 36. fxe5 {[%clk 0:00:31]}  fxe5 {[%clk 0:01:08]} 37. Bd7 {[%clk 0:00:31]}  f4 {[%clk 0:01:02]} 38. gxf4 {[%clk 0:00:30]}  exf4 {[%clk 0:01:02]} 39. Nxf4 {[%clk 0:00:29]}  Be5 {[%clk 0:01:02]} 40. Kf3 {[%clk 0:00:27]}  Kc3 {[%clk 0:00:58]} 41. Ke4 {[%clk 0:00:25]}  Bd6 {[%clk 0:00:58]} 42. Be6 {[%clk 0:00:22]}  a4 {[%clk 0:00:57]} 43. h3 {[%clk 0:00:22]}  Kd2 {[%clk 0:00:52]} 44. Nd5 {[%clk 0:00:20]}  Ke2 {[%clk 0:00:47]} 45. Nb6 {[%clk 0:00:20]}  a3 {[%clk 0:00:46]} 46. Nc4 {[%clk 0:00:20]}  Be7 {[%clk 0:00:45]} 47. Ne5 {[%clk 0:00:19]}  Kf2 {[%clk 0:00:42]} 48. Kd3 {[%clk 0:00:18]}  Kg3 {[%clk 0:00:41]} 49. Kc4 {[%clk 0:00:17]}  h5 {[%clk 0:00:36]} 50. Kb3 {[%clk 0:00:16]}  Kf4 {[%clk 0:00:24]} 51. Nc4 {[%clk 0:00:16]}  h4 {[%clk 0:00:23]} 52. Nxa3 {[%clk 0:00:16]}  Ke5 {[%clk 0:00:23]} 53. Bg4 {[%clk 0:00:16]}  Kd4 {[%clk 0:00:21]} 54. Nb5+ {[%clk 0:00:16]}  Kc5 {[%clk 0:00:21]} 55. Nc7 {[%clk 0:00:16]}  Kc6 {[%clk 0:00:18]} 56. Ne6 {[%clk 0:00:15]}  Kd5 {[%clk 0:00:17]} 57. a4 {[%clk 0:00:15]}  Kc6 {[%clk 0:00:15]} 58. Nd4+ {[%clk 0:00:13]}  Kd5 {[%clk 0:00:15]} 59. Nf5 {[%clk 0:00:13]}  Bd8 {[%clk 0:00:15]} 60. Kb4 {[%clk 0:00:13]}  Kc6 {[%clk 0:00:15]} 61. Bf3+ {[%clk 0:00:13]}  Kb6 {[%clk 0:00:14]} 62. Ne3 {[%clk 0:00:12]}  Be7+ {[%clk 0:00:13]} 63. Kb3 {[%clk 0:00:12]}  Ka5 {[%clk 0:00:12]} 64. Nc4+ {[%clk 0:00:11]}  Ka6 {[%clk 0:00:12]} 65. Ne5 {[%clk 0:00:11]}  Kb6 {[%clk 0:00:10]} 66. Ng6 {[%clk 0:00:08]}  Bd8 {[%clk 0:00:10]} 67. Kb4 {[%clk 0:00:08]}  Ka6 {[%clk 0:00:08]} 68. Be2+ {[%clk 0:00:08]}  Kb6 {[%clk 0:00:08]} 69. a5+ {[%clk 0:00:09]}  Kc6 {[%clk 0:00:08]} 70. Bf3+ {[%clk 0:00:08]}  Kc7 {[%clk 0:00:06]} 71. Kb5 {[%clk 0:00:08]}  Kb8 {[%clk 0:00:05]} 72. Ne5 {[%clk 0:00:07]}  Kc7 {[%clk 0:00:02]} 73. Nc6 {[%clk 0:00:05]}  Bf6 {[%clk 0:00:01]} 74. a6 {[%clk 0:00:05]} 1-0


[Site "https://www.chess.com"]